Cogmind - Beta 13 @@@ ROGUE MODE // 2024.04.12 @ 13:10:09 Player: m1m1c Result: Destroyed by Striker with Plasma Lance Performance ------------- Evolutions (5) 2500 Regions Visited (11) 2200 Robots Destroyed (35) 175 Value Destroyed (801) 801 Prototype IDs (5) 100 Alien Tech Used (0) 0 Bonus (1473) 1473 TOTAL SCORE: 7249 Bonus ------- Follower Combat Kills 70 Met Warlord at Base 500 MAIN.C Attacked Warlord 500 Warlord Defense Kills 738 Friendly Fire -335 Cogmind --------- Core Integrity 0/1000 Matter 300/300 Energy 100/100 System Corruption 1% Temperature Cool (0) Movement Hovering (80) Location -5/Warlord Parts ------- > --- POWER (2) -------- (None) > --- PROPULSION (6) --- Carbon-fiber Leg Biometal Leg Combat Linear Gravjet > --- UTILITY (7) ------ Makeshift Hacking Suite Improved System Shield > --- WEAPON (2) ------- (None) > --- INVENTORY (5) ---- Fission Core Slug Cannon Improved Datajack Peak State ------------ > --- POWER ------------ Neutrino Core Antimatter Reactor > --- PROPULSION ------- Carbon-fiber Leg Carbon-fiber Leg Carbon-fiber Leg Flexi-carbon Leg Flexi-carbon Leg Flexi-carbon Leg > --- UTILITY ---------- Advanced ECM Suite Makeshift Hacking Suite Makeshift Hacking Suite Improved System Shield > --- WEAPON ----------- Vortex Catalyst Activator > --- INVENTORY -------- Fission Core Improved Datajack [Rating: 72] Favorites ----------- Power Backup Power III Engine Backup Power III Power Core Micro Nuclear Core Reactor Antimatter Reactor Propulsion Aluminum Leg Leg Aluminum Leg Hover Unit Backup Propulsion III Flight Unit Field Propulsion Drive Utility Advanced ECM Suite Device Advanced ECM Suite Storage Large Battery Processor Terrain Scan Processor Hackware Hacking Suite Protection Core Shielding Weapon Backup Laser III Energy Gun Backup Laser III Energy Cannon Heavy Plasma Cannon Ballistic Gun Assault Rifle Ballistic Cannon Slug Cannon Launcher Grenade Launcher Special Melee Weapon Improved Datajack Build | -11 -10 -10 -9 -9 -8 -7 -6 -5 -5 -5 -5 ------- Run | Yrd Mat Min Mat Min Mat Fac Fac Fac Upp Upp War Slots Evolved 10 | . . . 2 . 2 2 2 2 . . . Power 1 | . . . . . . . . 1 . . . Propulsion 4 | . . . 1 . 2 . . 1 . . . Utility 5 | . . . 1 . . 2 2 . . . . Weapon . | . . . . . . . . . . . . Parts Attached 99 | 6 4 1 8 4 2 10 28 2 3 1 30 Power 16 | 1 1 . 2 1 . 1 4 . 1 . 5 Engine 8 | 1 1 . 2 1 . . 2 . . . 1 Core 6 | . . . . . . 1 2 . 1 . 2 Reactor 2 | . . . . . . . . . . . 2 Propulsion 36 | 2 . . 1 . 1 4 13 1 1 . 13 Treads . | . . . . . . . . . . . . Leg 17 | 2 . . 1 . 1 1 . . . . 12 Wheel . | . . . . . . . . . . . . Hover 10 | . . . . . . 1 8 . . . 1 Flight 9 | . . . . . . 2 5 1 1 . . Utility 28 | 1 1 . 3 1 . 5 7 1 1 1 7 Device 10 | . . . . 1 . 2 3 1 1 1 1 Storage 5 | 1 . . 2 . . 1 1 . . . . Processor 1 | . . . . . . 1 . . . . . Hackware 6 | . . . . . . 1 2 . . . 3 Protection 6 | . 1 . 1 . . . 1 . . . 3 Artifact . | . . . . . . . . . . . . Weapon 19 | 2 2 1 2 2 1 . 4 . . . 5 Energy Gun 2 | 1 . . 1 . . . . . . . . Energy Cannon 7 | . 1 1 1 2 1 . 1 . . . . Ballistic Gun 1 | 1 . . . . . . . . . . . Ballistic Cannon 1 | . . . . . . . . . . . 1 Launcher 5 | . 1 . . . . . 1 . . . 3 Special Weapon . | . . . . . . . . . . . . Impact Weapon . | . . . . . . . . . . . . Slashing Weapon . | . . . . . . . . . . . . Piercing Weapon . | . . . . . . . . . . . . Special Melee Weapon 3 | . . . . . . . 2 . . . 1 Unidentified Prototypes 5 | . . . 1 . . 1 1 . . . 2 Parts Lost 40 | . . . . 3 4 . 9 7 2 2 13 Power 4 | . . . . 1 . . . 1 . . 2 Propulsion 21 | . . . . . 4 . 4 5 1 . 7 Utility 10 | . . . . . . . 4 1 1 2 2 Weapon 5 | . . . . 2 . . 1 . . . 2 Highest Loss Streak 6 | . . . . 3 4 . 5 6 2 2 5 To Critical Strikes . | . . . . . . . . . . . . Average Slot Usage (%) 49 | . 93 100 91 85 38 29 72 31 8 8 44 Engine 5 | . 14 14 11 11 4 . 1 . . . 7 Leg 9 | . 28 28 33 33 13 . 1 . . . 5 Hover 3 | . . . . . . 2 13 2 . . 7 Flight 2 | . . . . . . 11 8 4 1 . . Device 4 | . . . . 7 4 3 7 5 6 8 4 Storage 5 | . 14 14 11 11 4 1 6 9 . . . Hackware 3 | . . . . . . 5 12 2 . . 4 Protection 4 | . 7 14 15 11 4 . 2 . . . 4 Energy Gun 2 | . 12 . 4 . . . . . . . 6 Energy Cannon 2 | . 1 14 5 8 5 . 3 1 . . . Launcher 2 | . 10 14 11 2 . . . . . . . Naked Turns 253 | . . . . . 59 110 . . . 56 28 Heaviest Build 53 | 11 17 20 40 36 39 12 36 32 4 4 53 Greatest Support 105 | 20 20 20 30 30 40 14 40 40 7 3 105 Greatest Overweight (x) 9 | 1 . . 1 1 9 . 4 3 1 1 3 Average Overweight (x) . | . . . . . . . . . . . . Largest Inventory Capacity 25 | 8 8 8 25 15 15 5 10 10 5 5 5 Average Capacity 7 | 7 8 8 11 15 10 5 5 9 5 5 5 Most Carried 12 | 2 8 8 10 12 9 5 6 9 4 3 5 Average Carried 5 | 1 3 7 8 9 6 4 4 7 3 3 4 Final Capacity 15 | 8 8 8 15 15 5 5 10 5 5 5 5 Final Carried 10 | 2 6 8 10 9 5 5 6 5 3 3 3 Class Distribution -------------------- 72% | Mutant 17% | Hacker-Mutant 7% | Commander-Mutant Dominant Class ---------------- Mutant | -10/Materials Mutant | -10/Mines Mutant | -9/Materials Mutant | -9/Mines Mutant | -8/Materials Mutant | -7/Factory Hacker-Mutant | -6/Factory Mutant | -5/Factory Mutant | -5/Upper Caves Mutant | -5/Upper Caves Commander-Mutant | -5/Warlord Resources | -11 -10 -10 -9 -9 -8 -7 -6 -5 -5 -5 -5 ----------- Run | Yrd Mat Min Mat Min Mat Fac Fac Fac Upp Upp War Matter Collected 1432 | 172 30 51 103 316 14 . 70 . 170 123 383 Remotely 242 | . . . . 228 14 . . . . . . Salvage Created 761 | . 179 19 179 103 14 . 77 . . . 190 Parts 42 | . 8 4 8 10 2 . 2 . . . 8 Haulers Intercepted 4 | . 2 . 2 . . . . . . . . Recyclers Shooed 1 | . 1 . . . . . . . . . . Parts Field Recycled . | . . . . . . . . . . . . Retrieved Matter . | . . . . . . . . . . . . Parts Self-Destructed . | . . . . . . . . . . . . Prevented . | . . . . . . . . . . . . Kills | -11 -10 -10 -9 -9 -8 -7 -6 -5 -5 -5 -5 ------- Run | Yrd Mat Min Mat Min Mat Fac Fac Fac Upp Upp War Combat Hostiles Destroyed 27 | . . 3 4 11 . . 1 . . . 8 Cannons 7 | . . . 1 6 . . . . . . . AOE 19 | . . 3 3 5 . . . . . . 8 Classes Destroyed 14 | . 5 1 1 2 1 . 1 . . . 3 Worker 2 | . 1 . 1 . . . . . . . . Tunneler 1 | . . . . 1 . . . . . . . Hauler 4 | . 2 . 2 . . . . . . . . Recycler 1 | . 1 . . . . . . . . . . Mechanic 1 | . 1 . . . . . . . . . . Operator 2 | . . . . . 1 . 1 . . . . Watcher 3 | . 1 . 2 . . . . . . . . Swarmer 10 | . . 3 3 4 . . . . . . . Saboteur 2 | . . . . . . . . . . . 2 Grunt 6 | . . . 1 . . . . . . . 5 Sentry 1 | . . . . . . . 1 . . . . Specialist 1 | . . . . . . . . . . . 1 Tinkerer 1 | . . . . . . . . . . . 1 Assembled 7 | . . . . 7 . . . . . . . Surgeon 1 | . . . . . . . . . . . 1 Best Kill Streak 11 | . 4 3 5 11 1 . 1 . . . 7 Combat Bots Only 10 | . . 3 3 10 . . 1 . . . 7 Max Kills in Single Turn 3 | . 1 2 3 2 1 . 1 . . . 3 Gunslinging . | . . . . . . . . . . . . Exploded 3 | . . 2 1 2 . . . . . . 3 Melee . | . . . . . . . . . . . . Uniques/NPCs Destroyed . | . . . . . . . . . . . . Combat | -11 -10 -10 -9 -9 -8 -7 -6 -5 -5 -5 -5 -------- Run | Yrd Mat Min Mat Min Mat Fac Fac Fac Upp Upp War Hostile Shots Fired 479 | . . 4 27 33 62 53 113 76 18 31 62 Missed 210 | . . 1 10 6 22 31 59 29 9 18 25 Damage Taken 5346 | . 7 46 173 422 673 273 1090 947 179 263 1273 Core 1900 | . . 12 24 109 238 121 355 447 141 216 237 Absorbed by Shields 35 | . . . . . . . . . . . 35 Redirected to Shielding 90 | . . 2 5 18 16 . . . . . 49 Core Remaining (%) 76 | 100 . 95 . 66 56 82 58 . . . . Volleys Fired 67 | . 12 3 9 18 7 . 6 . . . 12 Largest 2 | . 2 2 2 1 2 . 1 . . . 1 Hottest 160 | . 70 90 105 75 135 . 90 . . . 160 Shots Fired 95 | . 24 6 16 18 13 . 6 . . . 12 Gun 13 | . 12 . 1 . . . . . . . . Cannon 44 | . . 3 8 14 13 . 5 . . . 1 Launcher 38 | . 12 3 7 4 . . 1 . . . 11 Special . | . . . . . . . . . . . . Kinetic 1 | . . . . . . . . . . . 1 Thermal 48 | . 12 3 8 7 13 . 5 . . . . Explosive 29 | . 12 3 7 4 . . 1 . . . 2 Electromagnetic 8 | . . . 1 7 . . . . . . . Entropic 9 | . . . . . . . . . . . 9 Robot Hit Streak 6 | . 3 1 6 5 3 . 4 . . . 3 Robot Miss Streak 5 | . 1 3 1 3 2 . 1 . . . 5 Penetration Max . | . . . . . . . . . . . . Secondary Targets . | . . . . . . . . . . . . Shots Hit Robots 41 | . 8 1 7 8 8 . 4 . . . 5 Core Hits 61 | . 8 3 12 14 2 . 3 1 . . 18 Critical Kills 1 | . . . . . . . 1 . . . . Critical Parts Destroyed . | . . . . . . . . . . . . Critical Strikes 1 | . . . . . . . 1 . . . . Meltdown 1 | . . . . . . . 1 . . . . Melee Attacks 2 | . . . . . . . . . . . 2 Impact . | . . . . . . . . . . . . Slashing . | . . . . . . . . . . . . Piercing . | . . . . . . . . . . . . Sneak Attacks . | . . . . . . . . . . . . Combat Hostiles . | . . . . . . . . . . . . Follow-up Attacks . | . . . . . . . . . . . . Damage Inflicted 4180 | . 454 135 505 520 191 . 272 3 17 . 2083 Guns 46 | . 31 . 15 . . . . . . . . Cannons 624 | . . . 100 210 185 . 129 . . . . Explosions 3439 | . 423 135 390 295 . . 113 . . . 2083 Melee . | . . . . . . . . . . . . Ramming 71 | . . . . 15 6 . 30 3 17 . . Kinetic . | . . . . . . . . . . . . Thermal 570 | . 31 . 100 125 185 . 129 . . . . Explosive 2223 | . 423 135 390 295 . . 113 . . . 867 Electromagnetic 100 | . . . 15 85 . . . . . . . Impact . | . . . . . . . . . . . . Slashing . | . . . . . . . . . . . . Piercing . | . . . . . . . . . . . . Entropic 1216 | . . . . . . . . . . . 1216 Highest Corruption 1 | . . . . . . . . . . 1 1 Average Corruption 1 | . . . . . . . . . . 1 1 Corruption Purged . | . . . . . . . . . . . . Corruption Blocked 12 | . . . . . . . . . . . 12 Effects 2 | . . . . . . . . . . 1 1 Message Errors 1 | . . . . . . . . . . 1 . Heat Flow Errors 1 | . . . . . . . . . . . 1 Overload Shots . | . . . . . . . . . . . . Overflow Damage 406 | . 23 . 16 21 . . 162 . 1 . 183 Projectiles 21 | . . . 16 5 . . . . . . . Explosions 384 | . 23 . . 16 . . 162 . . . 183 Melee 1 | . . . . . . . . . 1 . . Knockbacks . | . . . . . . . . . . . . Impact . | . . . . . . . . . . . . Kinetic . | . . . . . . . . . . . . Secondary . | . . . . . . . . . . . . Self-Inflicted Damage 680 | . 7 24 37 . 3 . 389 1 8 . 211 Shots 11 | . 1 1 2 . . . 5 . . . 2 Rammed 6 | . . . . . 1 . 2 1 2 . . Targets Rammed 8 | . 1 . . 1 1 . 2 1 2 . . Kicked 2 | . 1 . . 1 . . . . . . . Crushed . | . . . . . . . . . . . . Highest Temperature 339 | . 36 90 140 163 272 . 339 . . . 215 Average Temperature 76 | . 14 48 56 65 109 . 154 . . . 68 Received Heat Transfer 960 | . . . 6 . 378 78 138 144 81 18 117 Siege Activations . | . . . . . . . . . . . . Robots Corrupted . | . . . . . . . . . . . . Combat Hostiles . | . . . . . . . . . . . . Parts Fried . | . . . . . . . . . . . . Impact Corruptions 1 | . . . . . . . . . 1 . . Robots Melted 1 | . . . . . . . 1 . . . . Combat Hostiles 1 | . . . . . . . 1 . . . . Parts Melted 4 | . . . 1 . . . 3 . . . . Heat Transferred 904 | . 75 . 148 185 296 . 200 . . . . Parts Sabotaged 4 | . . . . . . . . . . . 4 Parts Stolen . | . . . . . . . . . . . . Parts Stripped . | . . . . . . . . . . . . Power Chain Reactions . | . . . . . . . . . . . . Alert | -11 -10 -10 -9 -9 -8 -7 -6 -5 -5 -5 -5 ------- Run | Yrd Mat Min Mat Min Mat Fac Fac Fac Upp Upp War Peak Influence 280 | . 140 152 249 228 164 212 280 172 . . . Initial 96 | . . 54 59 96 78 74 35 24 . . . Average 96 | . 43 151 104 188 89 106 114 40 . . . Maximum Alert Level 1 | . . . 1 1 . 1 1 . . . . Low Security (%) 89 | 100 100 100 92 30 100 96 86 100 . . . Level 1 10 | . . . 7 69 . 3 13 . . . . Level 2 . | . . . . . . . . . . . . Level 3 . | . . . . . . . . . . . . Level 4 . | . . . . . . . . . . . . Level 5 . | . . . . . . . . . . . . High Security . | . . . . . . . . . . . . Max Security . | . . . . . . . . . . . . Squads Dispatched 9 | . . 1 1 . . 3 2 2 . . . Investigation 5 | . . 1 . . . 1 1 2 . . . Extermination . | . . . . . . . . . . . . Reinforcement 4 | . . . 1 . . 2 1 . . . . Assault . | . . . . . . . . . . . . Garrison . | . . . . . . . . . . . . Intercept . | . . . . . . . . . . . . Searches Triggered . | . . . . . . . . . . . . Construction Impeded 1 | . . . 1 . . . . . . . . Haulers Reinforced . | . . . . . . . . . . . . Active Scanning Responses . | . . . . . . . . . . . . Cargo Convoy Interrupts . | . . . . . . . . . . . . Stealth | -11 -10 -10 -9 -9 -8 -7 -6 -5 -5 -5 -5 --------- Run | Yrd Mat Min Mat Min Mat Fac Fac Fac Upp Upp War Distress Signals 8 | . . . 1 . 2 1 2 2 . . . Communications Jammed . | . . . . . . . . . . . . Distress Signals . | . . . . . . . . . . . . Times Spotted 173 | . 2 3 10 14 13 16 22 20 13 12 48 Peak Tracking Total 18 | . 1 3 4 5 8 7 10 10 5 7 18 Tactical Retreats 30 | . . . . 1 2 4 4 4 5 4 6 Traps | -11 -10 -10 -9 -9 -8 -7 -6 -5 -5 -5 -5 ------- Run | Yrd Mat Min Mat Min Mat Fac Fac Fac Upp Upp War Traps Triggered 3 | . . . . . . . . 3 . . . Indirectly . | . . . . . . . . . . . . Trap Hack Attempts . | . . . . . . . . . . . . Triggered . | . . . . . . . . . . . . Disarmed . | . . . . . . . . . . . . Reprogrammed 1 | . . . 1 . . . . . . . . Reused . | . . . . . . . . . . . . Traps Extracted . | . . . . . . . . . . . . Installed . | . . . . . . . . . . . . Triggered 11 | . . . . . . . . . . . 11 Machines | -11 -10 -10 -9 -9 -8 -7 -6 -5 -5 -5 -5 ---------- Run | Yrd Mat Min Mat Min Mat Fac Fac Fac Upp Upp War Machines Disabled 14 | . 4 1 2 . . . 7 . . . . Max in Single Turn 4 | . 2 1 1 . . . 4 . . . . Machines Repaired . | . . . . . . . . . . . . Machines Dismantled . | . . . . . . . . . . . . Machines Sabotaged . | . . . . . . . . . . . . Overloaded Fab Kills . | . . . . . . . . . . . . Hacking | -11 -10 -10 -9 -9 -8 -7 -6 -5 -5 -5 -5 --------- Run | Yrd Mat Min Mat Min Mat Fac Fac Fac Upp Upp War Machines Accessed 18 | . . 1 4 . . 5 4 3 . . 1 Terminals 14 | . . . 4 . . 4 4 2 . . . Fabricators 1 | . . . . . . 1 . . . . . Repair Stations 1 | . . . . . . . . 1 . . . Recycling Units . | . . . . . . . . . . . . Scanalyzers . | . . . . . . . . . . . . Garrison Access . | . . . . . . . . . . . . Total Hacks 30 | . . 1 6 . . 9 8 5 . . 1 Successful 13 | . . 1 4 . . 4 1 2 . . 1 Failed 17 | . . . 2 . . 5 7 3 . . . Catastrophic 4 | . . . 1 . . 1 2 . . . . Database Lockouts . | . . . . . . . . . . . . Manual . | . . . . . . . . . . . . Terminals 26 | . . . 6 . . 8 8 4 . . . Fabricators 1 | . . . . . . 1 . . . . . Repair Stations 1 | . . . . . . . . 1 . . . Recycling Units . | . . . . . . . . . . . . Scanalyzers . | . . . . . . . . . . . . Garrison Access . | . . . . . . . . . . . . Terminal Hacks 11 | . . 1 4 . . 3 1 1 . . 1 Open Door 2 | . . 1 . . . . . . . . 1 Open DSF 2 | . . . . . . 1 . 1 . . . Branch Access Points 1 | . . . 1 . . . . . . . . Emergency Access Points 1 | . . . 1 . . . . . . . . Alert Level 1 | . . . . . . 1 . . . . . Unreport Threat 1 | . . . . . . . 1 . . . . Reprogram Traps 1 | . . . 1 . . . . . . . . Zone Layout 2 | . . . 1 . . 1 . . . . . Fabricator Hacks 1 | . . . . . . 1 . . . . . Build 1 | . . . . . . 1 . . . . . Repair Station Hacks 1 | . . . . . . . . 1 . . . Scan Component 1 | . . . . . . . . 1 . . . Recycling Unit Hacks . | . . . . . . . . . . . . Scanalyzer . | . . . . . . . . . . . . Garrison Access Hacks . | . . . . . . . . . . . . Unauthorized Hacks . | . . . . . . . . . . . . Terminals . | . . . . . . . . . . . . Fabricators . | . . . . . . . . . . . . Repair Stations . | . . . . . . . . . . . . Recycling Units . | . . . . . . . . . . . . Scanalyzers . | . . . . . . . . . . . . Garrison Access . | . . . . . . . . . . . . Data Cores Recovered 1 | . . . . . 1 . . . . . . Used . | . . . . . . . . . . . . Hacking Detections 11 | . . . 1 . . 4 4 2 . . . Full Trace Events 2 | . . . . . . 1 1 . . . . Feedback Events . | . . . . . . . . . . . . Feedback Blocked . | . . . . . . . . . . . . Robot Schematics Acquired . | . . . . . . . . . . . . Robots Built . | . . . . . . . . . . . . Authchips . | . . . . . . . . . . . . Time . | . . . . . . . . . . . . Total Robot Build Rating . | . . . . . . . . . . . . Part Schematics Acquired . | . . . . . . . . . . . . Parts Built 2 | . . . . . . 2 . . . . . Authchips . | . . . . . . . . . . . . Time 53 | . . . . . . 53 . . . . . Total Part Build Rating 12 | . . . . . . 12 . . . . . Parts Repaired . | . . . . . . . . . . . . Time . | . . . . . . . . . . . . Parts Recycled . | . . . . . . . . . . . . Recycled Matter . | . . . . . . . . . . . . Retrieved Matter . | . . . . . . . . . . . . Retrieved Components . | . . . . . . . . . . . . Parts Scanalyzed . | . . . . . . . . . . . . Part Schematics Acquired . | . . . . . . . . . . . . Parts Damaged . | . . . . . . . . . . . . Bothacking | -11 -10 -10 -9 -9 -8 -7 -6 -5 -5 -5 -5 ------------ Run | Yrd Mat Min Mat Min Mat Fac Fac Fac Upp Upp War Used RIF Installer . | . . . . . . . . . . . . Robots Hacked . | . . . . . . . . . . . . Non-combat . | . . . . . . . . . . . . Combat . | . . . . . . . . . . . . Robot Hacks Applied . | . . . . . . . . . . . . Relay Couplers Released . | . . . . . . . . . . . . Fabnet Peak Effective % . | . . . . . . . . . . . . Robots Rewired 5 | . . . . . . . . . . . 5 Allies Hacked . | . . . . . . . . . . . . Hacks Repelled . | . . . . . . . . . . . . Allies | -11 -10 -10 -9 -9 -8 -7 -6 -5 -5 -5 -5 -------- Run | Yrd Mat Min Mat Min Mat Fac Fac Fac Upp Upp War Total Allies 8 | . . . . . . . . 3 . . 5 Largest Group 5 | . . . . . . . . 3 . . 5 Highest-Rated Group 234 | . . . . . . . . 93 . . 234 Highest-Rated Ally 65 | . . . . . . . . 31 . . 65 Total Orders . | . . . . . . . . . . . . Ally Attacks 26 | . . . . . . . . 9 . . 17 Total Damage 774 | . . . . . . . . 145 . . 629 Kills 3 | . . . . . . . . 1 . . 2 Allies Corrupted . | . . . . . . . . . . . . Allies Melted . | . . . . . . . . . . . . Intel | -11 -10 -10 -9 -9 -8 -7 -6 -5 -5 -5 -5 ------- Run | Yrd Mat Min Mat Min Mat Fac Fac Fac Upp Upp War Robot Analysis Total . | . . . . . . . . . . . . Derelict Logs Recovered 2 | . . . . . . . . . 1 1 . Drone Launches 2 | . . . . . . . 2 . . . . Drone Recoveries 1 | . . . . . . . 1 . . . . Exploration | -11 -10 -10 -9 -9 -8 -7 -6 -5 -5 -5 -5 ------------- Run | Yrd Mat Min Mat Min Mat Fac Fac Fac Upp Upp War Turns Passed 5404 | 72 352 358 264 319 126 437 572 678 580 431 1215 Spaces Moved 6432 | 57 250 286 162 154 145 800 896 768 1180 536 1198 Core 1959 | 16 . . . . 119 95 . 10 809 536 374 Treads . | . . . . . . . . . . . . Legs 1073 | 41 250 286 162 154 26 . . . . . 154 Wheels . | . . . . . . . . . . . . Hover 1537 | . . . . . . . 640 227 . . 670 Flight 1863 | . . . . . . 705 256 531 371 . . Fastest Speed 35 | 50 120 120 120 120 50 42 42 35 45 50 50 Average Speed 75 | 109 120 120 139 179 70 44 56 86 48 80 84 Slowest Speed 500 | 120 120 120 190 190 500 52 355 275 100 100 200 Overloaded Moves . | . . . . . . . . . . . . Propulsion Burnouts . | . . . . . . . . . . . . Robots Hopped 20 | . . . . . . 7 . 13 . . . Cave-ins Triggered . | . . . . . . . . . . . . Exploration Rate (%) 38 | 5 39 55 20 25 22 23 17 20 87 65 82 Regions Visited 11 Branch Regions 5 Pre-discovered Areas . | . . . . . . . . . . . . Known Exits Taken 1 | . . . 1 . . . . . . . . Unknown Exits Taken 10 | 1 1 1 . 1 1 1 1 1 1 1 . Scrap Searched 5 | . . 1 . . . . . . 2 2 . Spaces Dug . | . . . . . . . . . . . . Terrain Destroyed 391 | . 61 21 43 37 1 . 72 . . . 156 Melee . | . . . . . . . . . . . . Projectile 5 | . . . 1 2 1 . 1 . . . . AOE 386 | . 61 21 42 35 . . 71 . . . 156 Terrain Rammed . | . . . . . . . . . . . . Walls Destroyed . | . . . . . . . . . . . . Machines Disabled . | . . . . . . . . . . . . Actions | -11 -10 -10 -9 -9 -8 -7 -6 -5 -5 -5 -5 --------- Run | Yrd Mat Min Mat Min Mat Fac Fac Fac Upp Upp War Total 6852 | 64 278 295 186 179 156 871 957 768 1185 536 1377 Wait 137 | . . . . 1 . 62 1 . . . 73 Move 6383 | 56 249 285 161 153 144 786 895 742 1179 535 1198 Hop 18 | . . . . . . 6 . 12 . . . Pick Up 34 | 2 8 4 3 . . 4 6 3 . . 4 Fast Attach 60 | 6 1 . 3 1 . 7 18 . . 1 23 Attach 35 | . . . 4 3 2 3 11 2 3 . 7 Detach 22 | . . . 3 2 2 1 7 2 1 . 4 Swap 6 | . 3 1 1 . . . . . . . 1 Drop 38 | . 4 2 2 . . 2 11 6 . . 11 Fire 67 | . 12 3 9 18 7 . 6 . . . 12 Melee 2 | . . . . . . . . . . . 2 Ram 6 | . . . . . 1 . 2 1 2 . . Kick 2 | . 1 . . 1 . . . . . . . Crush . | . . . . . . . . . . . . Escape Stasis . | . . . . . . . . . . . . Rewire 42 | . . . . . . . . . . . 42 Trap . | . . . . . . . . . . . . Miscellaneous . | . . . . . . . . . . . . Route ------- -11/Scrapyard -10/Materials (discovered 2 exits: *Mat / *Min) -10/Mines -9/Materials -9/Mines -8/Materials -7/Factory -6/Factory -5/Factory -5/Upper Caves -5/Upper Caves -5/Warlord History --------- Turn | Location | Event 21 | -11/Scrapyard | Discovered new exit (range 16) 73 | -11/Scrapyard | Entered Materials 316 | -10/Materials | Build established: Mutant 321 | -10/Materials | Discovered new exit (range 16) 350 | -10/Materials | Discovered new exit (range 15) 425 | -10/Materials | Entered Mines 542 | -10/Mines | Met a Derelict shopkeep closing up shop 689 | -10/Mines | Discovered new exit (range 5) 783 | -10/Mines | Entered Materials 783 | -9/Materials | Evolved 2 slots: Propulsion x1, Utility x1 809 | -9/Materials | Identified exit to Mines 1047 | -9/Materials | Entered Mines 1048 | -9/Mines | Assembled infested the area 1053 | -9/Mines | Assisted by a Guerilla fighting off Assembled 1061 | -9/Mines | Met a Derelict bent on vengeance 1139 | -9/Mines | Discovered new exit (range 15) 1154 | -9/Mines | Lost 3 parts (1p2w) 1166 | -9/Mines | Destroyed 10 combat bots 1366 | -9/Mines | Entered Materials 1366 | -8/Materials | Evolved 2 slots: Propulsion x2 1433 | -8/Materials | Released all parts (4) 1457 | -8/Materials | Lost 4 parts (4n) 1484 | -8/Materials | Discovered new exit (range 16) 1492 | -8/Materials | Entered Factory 1492 | -7/Factory | Evolved 2 slots: Utility x2 1601 | -7/Factory | Fabricated Field Propulsion Drive (x2) 1921 | -7/Factory | Discovered new exit (range 12) 1929 | -7/Factory | Entered another Factory area 1929 | -6/Factory | Evolved 2 slots: Utility x2 2055 | -6/Factory | Lost 5 parts (2n2u1w) 2264 | -6/Factory | Build established: Hacker-Mutant 2411 | -6/Factory | Lost 3 parts (1n2u) 2427 | -6/Factory | Discovered new exit (range 16) 2501 | -6/Factory | Entered another Factory area 2501 | -5/Factory | Evolved 2 slots: Power x1, Propulsion x1 2535 | -5/Factory | Spotted B-75 Beast 2696 | -5/Factory | Allied Derelicts emerged from ambush trap array 2709 | -5/Factory | Lost 6 parts (1p4n1u) 2743 | -5/Factory | Lost 3 allies 2907 | -5/Factory | Build established: Mutant 3172 | -5/Factory | Discovered new exit (range 16) 3179 | -5/Factory | Entered Upper Caves 3208 | -5/Upper Caves | Learned Factory emergency access door positions 3646 | -5/Upper Caves | Core integrity fell below 50% 3745 | -5/Upper Caves | Discovered new exit (range 6) 3749 | -5/Upper Caves | Encountered a Warlord checkpoint 3759 | -5/Upper Caves | Entered another Upper Caves area 4114 | -5/Upper Caves | Learned Factory emergency access door positions 4129 | -5/Upper Caves | Attracted the attention of an 0b10 checkpoint 4165 | -5/Upper Caves | Core integrity fell below 20% 4182 | -5/Upper Caves | Discovered new exit (range 13) 4190 | -5/Upper Caves | Entered Warlord 4224 | -5/Warlord | System corruption cleaned by Quarantine Array 4343 | -5/Warlord | Met Warlord 4368 | -5/Warlord | Warlord's base attacked by MAIN.C 4608 | -5/Warlord | Found Prototype Launcher 4608 | -5/Warlord | Identified Vortex Catalyst Activator 4718 | -5/Warlord | Warlord forces counterattacked 4849 | -5/Warlord | Build established: Commander-Mutant 4975 | -5/Warlord | Spotted Striker 5042 | -5/Warlord | Lost 9 allies 5043 | -5/Warlord | Warlord base infiltrated, sounded retreat 5095 | -5/Warlord | Spotted Striker 5153 | -5/Warlord | Lost 9 allies 5197 | -5/Warlord | Spotted Striker 5277 | -5/Warlord | Lost 3 parts (3n) 5282 | -5/Warlord | Destroyed 7 combat bots 5333 | -5/Warlord | Lost 3 parts (1p1n1u) 5348 | -5/Warlord | Found Prototype Launcher 5348 | -5/Warlord | Identified Chain Missile Launcher 5370 | -5/Warlord | Spotted Striker 5370 | -5/Warlord | Spotted Striker 5371 | -5/Warlord | Spotted Striker 5371 | -5/Warlord | Spotted Striker 5402 | -5/Warlord | Lost 4 allies 5404 | -5/Warlord | Lost 5 parts (1p2n1u1w) 5405 | -5/Warlord | Destroyed by Striker with Plasma Lance Last Messages --------------- Antimatter Reactor destroyed. P-70 Sage resets D-63 Destroyer, system corruption cleaned. Propulsion Shielding destroyed. Carbon-fiber Leg destroyed. The unstable cave ceiling collapses. Gravmag System crushed. Carbon-fiber Leg destroyed. Chain Missile Launcher destroyed. HV Slug penetrates Striker. P-80 Master resets D-63 Destroyer, system corruption cleaned. Acquired 45 matter. P-70 Sage resets D-63 Destroyer, system corruption cleaned. Acquired Cmb. Linear Gravjet. Acquired 10 matter. The unstable cave ceiling collapses. P-80 Master destroyed. Flexi-carbon Leg destroyed. Map ----- +----------------------------------------------------+ | ?????????????????????????????????????????????????? | | ?????????????????????????????????????????????????? | | ?????????????????????????????????????????????????? | | ?????????????????????????????????????????????????? | | ?????????????????????????????????????????????????? | | ?????????????????????????????????????????????????? | | ??????????????????????????? ???????????????????? | | ????????????????????? ??" #??????????????????? | | ????????????????????? ? #??????????????????? | | ????????????????????? ^ ? #??????????????????? | | ????????????????????# """ #??????????????????? | | ????????????????????# """ #??????????????????? | | ????????????????????# """ #?????????????? ???? | | ????????????????????# #??????""??????? #?? | | ???????????#######??# #?????#""#??????? #? | | ??????????##"""""#??# #?????#""#???????? # | | ??????????# X X "#??# #######""#?###????? | | ??????????# X"#??# # ##""### ##????# | | ??????????# "#### #### # # # "" ##???# | | ??????????#X X" =%%" *! ##### | | ??????###### ; # # #*=[" *!! | | ????### ; # = ! [= | | ##### % = [ &% =! | | [%! =[ | | = K p p % | | !! % =@ %% % %* % | | ! # # K % # ! = = | | ! / # K " = | | % # ""! | | =% # # # #"" | | # ######""#### # | | # #; ; #???#""#??######## | | % ###; ###???#""#?????????? | | ### #?????#""??????????? | | % # #+#####?# #???????"??????????? | | ! ##### #??????????????????? | | #??????????????????? | | #??????????????????? | | # ##?????????????????? | | # # ##### #?????????????????? | | #### ####???# ##?????????????????# | | #####+#### ###### #??????# #?????????????????## | | + # #??????# #?????????????????# | | ## # ########+##????????????????# | | ## # # #????????????????# | | ####### ! # # #????????????????## | | ^#?????# ! ] # # """"#?????????????????? | | #?????# ]] + # """"#?????????????????? | | #?????# # + """"#?????????????????? | | #?????# # # """"#?????????????????? | +----------------------------------------------------+ Best States ------------- Heat Dissipation 40 Energy Generation 35 Energy Capacity 540 Matter Stores 300 Matter Capacity 300 Sight Range 16 Robot Scan Range 16 Terrain Scan Density 85 ECM Strength 2 Armor Coverage 180 Resistance: KI 10 Core Shielding 20 Propulsion Shielding 33 Evasion (%) 63 Offensive Hacking 22 Defensive Hacking 12 Item Schematics ----------------- None Robot Schematics ------------------ None Fabricated ------------ Field Propulsion Drive | x2 | -7/Factory | Preloaded Alien Tech Used ----------------- None Achievements -------------- A New Friend A Powerful Ally? Just What I Needed Leap Before You Look Oh No You Don't! Slippery One Challenges ------------ None Game ------ Seed MeleeAssembledCompressor Manual? 0 Play Time 01:06:53 Cumulative 13.1 hours Start 2024.04.12 @ 10:31:24 End 2024.04.12 @ 13:10:09 Sessions 1 Manual Loads 0 Difficulty Rogue Special Mode None Game No. 46 Rogue 46 Adventurer 0 Explorer 0 Win Type - Total 0 Types 0/0/0/0/0/0/0/0/0 Lore% 12 Gallery% 20 Achievement% 19 Wizard Run 0 Options --------- Layout 1 ASCII 1 Keyboard 0 Movement Arrows Keybinds 0 Fullscreen 1 Font 18/SmallcapsGlow Map View 50x40 Zoom Use 0% Tactical HUD 0 Map Filters NONE Filters NONE Steam 1 RUN: d18b8b07-50d8-4be3-8a4d-8139f629531c